Cogmind - Beta 16 @@@ ROGUE MODE // 2025.11.13 @ 15:30:24 Player: Mozco Result: Destroyed by S-10 Pest with Light Assault Rifle Performance ------------- Evolutions (0) 0 Regions Visited (4) 800 Robots Destroyed (22) 110 Value Destroyed (332) 332 Prototype IDs (25) 500 Alien Tech Used (0) 0 Bonus (300) 300 TOTAL SCORE: 2042 Bonus ------- Aligned with FarCom 300 Cogmind --------- Core Integrity 0/250 Matter 290/300 Energy 125/125 System Corruption 0% Temperature Cool (0) Movement Walking (260) Ox2 Location -9/Mines Parts ------- > --- POWER (1) -------- Light Ion Engine > --- PROPULSION (2) --- Aluminum Leg Aluminum Leg > --- UTILITY (2) ------ High-capacity Storage Unit > --- WEAPON (2) ------- Mining Claw Mining Claw > --- INVENTORY (20) --- Light Ion Engine Aluminum Leg Aluminum Leg Aluminum Leg Aluminum Leg Potential Leg Potential Leg Medium Storage Unit Superbattery (1500) Improved Terrain Scanner Terrain Scan Processor Utility Shielding Light Armor Plating Peak State ------------ > --- POWER ------------ Light Ion Engine > --- PROPULSION ------- Aluminum Leg Aluminum Leg > --- UTILITY ---------- High-capacity Storage Unit Improved Terrain Scanner > --- WEAPON ----------- Mining Claw Mining Claw > --- INVENTORY -------- Light Ion Engine Aluminum Leg Aluminum Leg Aluminum Leg Aluminum Leg Potential Leg Potential Leg Medium Storage Unit Superbattery Structural Scanner Terrain Scan Processor Utility Shielding Light Armor Plating [Rating: 13] Favorites ----------- Power Light Ion Engine Engine Light Ion Engine Propulsion Aluminum Leg Leg Aluminum Leg Utility High-capacity Storage Unit Device Improved Terrain Scanner Storage High-capacity Storage Unit Protection Light Armor Plating Weapon Mining Claw Slashing Weapon Mining Claw Build | -11 -10 -10 -10 -9 ------- Run | Yrd Mat Min Exi Min Slots Evolved . | . . . . . Power . | . . . . . Propulsion . | . . . . . Utility . | . . . . . Weapon . | . . . . . Parts Attached 17 | 1 11 1 1 3 Power 3 | 1 2 . . . Engine 3 | 1 2 . . . Core . | . . . . . Reactor . | . . . . . Propulsion 6 | . 4 . . 2 Treads . | . . . . . Leg 6 | . 4 . . 2 Wheel . | . . . . . Hover . | . . . . . Flight . | . . . . . Utility 6 | . 3 1 1 1 Device 2 | . . 1 . 1 Storage 3 | . 2 . 1 . Processor . | . . . . . Hackware . | . . . . . Protection 1 | . 1 . . . Artifact . | . . . . . Weapon 2 | . 2 . . . Energy Gun . | . . . . . Energy Cannon . | . . . . . Ballistic Gun . | . . . . . Ballistic Cannon . | . . . . . Launcher . | . . . . . Special Weapon . | . . . . . Impact Weapon . | . . . . . Slashing Weapon 2 | . 2 . . . Piercing Weapon . | . . . . . Special Melee Weapon . | . . . . . Unidentified Prototypes . | . . . . . Parts Lost 2 | . . . . 2 Power . | . . . . . Propulsion 1 | . . . . 1 Utility 1 | . . . . 1 Weapon . | . . . . . Highest Loss Streak 2 | . . . . 2 To Critical Strikes . | . . . . . Average Backups 9 | 2 6 10 11 13 Power 1 | . 1 1 1 1 Propulsion 4 | 1 2 4 5 6 Utility 4 | . 2 4 5 6 Weapon . | . . . . . Tool/Special . | . . . . . Unused Backups 11 | . 1 1 . 9 Power 1 | . . . . 1 Propulsion 6 | . . 1 . 5 Utility 4 | . 1 . . 3 Weapon . | . . . . . Tool/Special . | . . . . . Average Slot Usage (%) 89 | . 83 100 100 87 Engine 14 | . 14 14 14 14 Leg 27 | . 26 28 28 27 Device 4 | . . 11 14 2 Storage 13 | . 13 14 14 14 Protection 1 | . 2 2 . . Slashing Weapon 27 | . 26 28 28 28 Peak Build Rating 13 | 1 8 10 13 13 Average Rating 8 | . 6 9 11 10 On Entrance 6 | . 1 8 10 13 Avg Prop Armor Cover (%) . | . . . . . Naked Turns . | . . . . . Heaviest Build 48 | 3 22 20 48 48 Greatest Support 20 | 3 20 20 20 20 Greatest Overweight (x) 4 | . 2 . 2 4 Average Overweight (x) . | . . . . 2 Largest Inventory Capacity 20 | 5 10 10 20 20 Average Capacity 13 | 5 8 10 15 20 Most Carried 13 | 5 10 10 13 13 Average Carried 9 | 3 6 9 11 13 Final Capacity 20 | 5 10 10 20 20 Final Carried 13 | 4 10 10 13 13 Class Distribution -------------------- 98% | Mutant Dominant Class ---------------- Mutant | -10/Materials Mutant | -10/Mines Mutant | -10/Exiles Mutant | -9/Mines Resources | -11 -10 -10 -10 -9 ----------- Run | Yrd Mat Min Exi Min Matter Collected 360 | 184 136 10 . 30 Remotely . | . . . . . Salvage Created 695 | . 577 18 . 100 Parts 45 | . 39 3 . 3 Haulers Intercepted 1 | . 1 . . . Recyclers Shooed . | . . . . . Parts Field Recycled . | . . . . . Retrieved Matter . | . . . . . Parts Self-Destructed . | . . . . . Prevented . | . . . . . Parts Restored . | . . . . . Kills | -11 -10 -10 -10 -9 ------- Run | Yrd Mat Min Exi Min Combat Hostiles Destroyed 9 | . 7 . . 2 Melee 9 | . 7 . . 2 Classes Destroyed 7 | . 7 . . . Worker 5 | . 5 . . . Builder 3 | . 3 . . . Tunneler 3 | . 2 1 . . Hauler 1 | . 1 . . . Recycler 1 | . 1 . . . Swarmer 3 | . 3 . . . Grunt 6 | . 4 . . 2 Best Kill Streak 3 | . 3 1 . 1 Combat Bots Only 2 | . 2 . . 1 Max Kills in Single Turn 1 | . 1 1 . 1 Gunslinging . | . . . . . Exploded . | . . . . . Melee 1 | . 1 . . 1 Uniques/NPCs Destroyed . | . . . . . Combat | -11 -10 -10 -10 -9 -------- Run | Yrd Mat Min Exi Min Hostile Shots Fired 97 | . 41 25 . 31 Missed 28 | . 10 14 . 4 Hits 69 | . 31 11 . 27 Projectile 69 | . 31 11 . 27 Critical Strikes 2 | . 1 . . 1 Damage Taken 743 | . 314 92 . 337 Core 254 | . 100 26 . 128 Absorbed by Shields . | . . . . . Core Remaining (%) 100 | 100 . . . . Volleys Fired . | . . . . . Largest . | . . . . . Hottest . | . . . . . Shots Fired . | . . . . . Gun . | . . . . . Cannon . | . . . . . Launcher . | . . . . . Special . | . . . . . Kinetic . | . . . . . Thermal . | . . . . . Explosive . | . . . . . Electromagnetic . | . . . . . Robot Hit Streak . | . . . . . Robot Miss Streak . | . . . . . Penetration Max . | . . . . . Secondary Targets . | . . . . . Shots Hit Robots 55 | . 40 4 . 11 Core Hits 24 | . 21 . . 3 Critical Kills . | . . . . . Critical Parts Destroyed . | . . . . . Critical Strikes . | . . . . . Melee Attacks 86 | . 66 6 . 14 Impact . | . . . . . Slashing 86 | . 66 6 . 14 Piercing . | . . . . . Sneak Attacks 21 | . 17 3 . 1 Combat Hostiles . | . . . . . Follow-up Attacks 12 | . 9 1 . 2 Damage Inflicted 1707 | . 1256 159 . 292 Guns . | . . . . . Cannons . | . . . . . Explosions . | . . . . . Melee 1707 | . 1256 159 . 292 Ramming . | . . . . . Kinetic . | . . . . . Thermal . | . . . . . Explosive . | . . . . . Electromagnetic . | . . . . . Impact . | . . . . . Slashing 1707 | . 1256 159 . 292 Piercing . | . . . . . Highest Corruption . | . . . . . Average Corruption . | . . . . . Corruption Purged . | . . . . . Corruption Blocked . | . . . . . Overload Shots . | . . . . . Overflow Damage 107 | . 40 59 . 8 Projectiles . | . . . . . Explosions . | . . . . . Melee 107 | . 40 59 . 8 Knockbacks . | . . . . . Impact . | . . . . . Kinetic . | . . . . . Secondary . | . . . . . Self-Inflicted Damage . | . . . . . Shots . | . . . . . Rammed . | . . . . . Targets Rammed . | . . . . . Kicked . | . . . . . Crushed . | . . . . . Highest Temperature 10 | . . . . 10 Average Temperature 10 | . . . . 10 Received Heat Transfer 291 | . 96 . . 195 Siege Activations . | . . . . . Martial Activations . | . . . . . Shielding Activations . | . . . . . Robots Disrupted . | . . . . . Combat Hostiles . | . . . . . Robots Corrupted . | . . . . . Combat Hostiles . | . . . . . Parts Fried . | . . . . . Impact Corruptions . | . . . . . Robots Melted . | . . . . . Combat Hostiles . | . . . . . Parts Melted . | . . . . . Heat Transferred . | . . . . . Parts Sabotaged . | . . . . . Parts Stolen . | . . . . . Parts Stripped . | . . . . . Power Chain Reactions . | . . . . . Alert | -11 -10 -10 -10 -9 ------- Run | Yrd Mat Min Exi Min Maximum Alert Level . | . . . . . Low Security (%) 100 | 100 100 100 . 100 Level 1 . | . . . . . Level 2 . | . . . . . Level 3 . | . . . . . Level 4 . | . . . . . Level 5 . | . . . . . High Security . | . . . . . Max Security . | . . . . . Peak Influence 77 | . 77 30 . 30 Initial 12 | . . 12 . . Average 10 | . 21 3 . . Influence Increases 385 | . 291 44 . 50 Destroy 0b10 Robot/C 180 | . 140 . . 40 Destroy 0b10 Robot/NC 65 | . 60 5 . . Destroy Leader 42 | . 32 . . 10 Successful Hack 38 | . 29 9 . . Disable Machine 15 | . 15 . . . Lose Combat Pursuer 45 | . 15 30 . . Influence Decreases 385 | . 260 72 3 50 Entered New Map 22 | . . 19 3 . Time Decay 343 | . 260 53 . 30 Lost Part 20 | . . . . 20 Squads Dispatched . | . . . . . Investigation . | . . . . . Extermination . | . . . . . Reinforcement . | . . . . . Assault . | . . . . . Garrison . | . . . . . Intercept . | . . . . . Searches Triggered . | . . . . . Construction Impeded . | . . . . . Haulers Reinforced . | . . . . . Active Scanning Responses . | . . . . . Cargo Convoy Interrupts . | . . . . . Stealth | -11 -10 -10 -10 -9 --------- Run | Yrd Mat Min Exi Min Distress Signals . | . . . . . Communications Jammed . | . . . . . Distress Signals . | . . . . . Times Spotted 30 | . 19 7 . 4 Peak Tracking Total 4 | . 4 3 . 2 Tactical Retreats 2 | . 1 1 . . Traps | -11 -10 -10 -10 -9 ------- Run | Yrd Mat Min Exi Min Traps Triggered . | . . . . . Indirectly . | . . . . . Trap Hack Attempts . | . . . . . Triggered . | . . . . . Disarmed . | . . . . . Reprogrammed . | . . . . . Reused . | . . . . . Traps Extracted . | . . . . . Installed . | . . . . . Triggered . | . . . . . Machines | -11 -10 -10 -10 -9 ---------- Run | Yrd Mat Min Exi Min Machines Disabled 1 | . 1 . . . Max in Single Turn 1 | . 1 . . . Machines Repaired . | . . . . . Machines Dismantled . | . . . . . Machines Sabotaged . | . . . . . Overloaded Fab Kills . | . . . . . Hacking | -11 -10 -10 -10 -9 --------- Run | Yrd Mat Min Exi Min Machines Accessed 10 | . 7 1 2 . Terminals 8 | . 7 1 . . Fabricators . | . . . . . Repair Stations . | . . . . . Recycling Units . | . . . . . Scanalyzers . | . . . . . Garrison Access . | . . . . . Total Hacks 27 | . 23 2 2 . Successful 16 | . 12 2 2 . Failed 11 | . 11 . . . Catastrophic . | . . . . . Database Lockouts . | . . . . . Manual 22 | . 20 1 1 . Terminals 25 | . 23 2 . . Fabricators . | . . . . . Repair Stations . | . . . . . Recycling Units . | . . . . . Scanalyzers . | . . . . . Garrison Access . | . . . . . Terminal Hacks 12 | . 8 2 2 . Record 1 | . . . 1 . Robot Analysis 7 | . 6 1 . . Prototype ID Bank 1 | . 1 . . . Terminal Index 1 | . 1 . . . Zone Layout 1 | . . 1 . . Proto ID Catalog 1 | . . . 1 . Fabricator Hacks . | . . . . . Repair Station Hacks . | . . . . . Recycling Unit Hacks . | . . . . . Scanalyzer . | . . . . . Garrison Access Hacks . | . . . . . Unauthorized Hacks 4 | . 4 . . . Terminals 4 | . 4 . . . Assimilate 2 | . 2 . . . Botnet 2 | . 2 . . . Fabricators . | . . . . . Repair Stations . | . . . . . Recycling Units . | . . . . . Scanalyzers . | . . . . . Garrison Access . | . . . . . Data Cores Recovered . | . . . . . Used . | . . . . . Hacking Detections 8 | . 7 1 . . Full Trace Events 1 | . 1 . . . Feedback Events . | . . . . . Feedback Blocked . | . . . . . Robot Schematics Acquired . | . . . . . Robots Built . | . . . . . Authchips . | . . . . . Time . | . . . . . Total Robot Build Rating . | . . . . . Part Schematics Acquired . | . . . . . Parts Built . | . . . . . Authchips . | . . . . . Time . | . . . . . Total Part Build Rating . | . . . . . Part Studies Acquired . | . . . . . Parts Repaired . | . . . . . Time . | . . . . . Parts Recycled . | . . . . . Recycled Matter . | . . . . . Retrieved Matter . | . . . . . Retrieved Components . | . . . . . Parts Scanalyzed . | . . . . . Part Schematics Acquired . | . . . . . Parts Damaged . | . . . . . Bothacking | -11 -10 -10 -10 -9 ------------ Run | Yrd Mat Min Exi Min Used RIF Installer . | . . . . . Robots Hacked . | . . . . . Non-combat . | . . . . . Combat . | . . . . . Robot Hacks Applied . | . . . . . Relay Couplers Released . | . . . . . Fabnet Peak Effective % . | . . . . . Robots Rewired . | . . . . . Allies Hacked . | . . . . . Hacks Repelled . | . . . . . Allies | -11 -10 -10 -10 -9 -------- Run | Yrd Mat Min Exi Min Total Allies 1 | . 1 . . . Largest Group 1 | . 1 1 1 1 Highest-Rated Group 10 | . 10 10 10 10 Highest-Rated Ally 10 | . 10 10 10 10 Total Orders . | . . . . . Ally Attacks . | . . . . . Total Damage . | . . . . . Kills . | . . . . . Allies Corrupted . | . . . . . Allies Melted . | . . . . . Intel | -11 -10 -10 -10 -9 ------- Run | Yrd Mat Min Exi Min Active Infowar (turns) 969 | . . 351 444 174 Terrain 842 | . . 351 444 47 Structural 127 | . . . . 127 Robot Analysis Total 7 | . 6 1 . . Derelict Logs Recovered 4 | . . 3 . 1 Drone Launches . | . . . . . Drone Recoveries . | . . . . . Exploration | -11 -10 -10 -10 -9 ------------- Run | Yrd Mat Min Exi Min Turns Passed 2798 | 28 1026 425 444 875 Spaces Moved 1693 | 44 736 339 254 320 Core 151 | 44 107 . . . Treads . | . . . . . Legs 1542 | . 629 339 254 320 Wheels . | . . . . . Hover . | . . . . . Flight . | . . . . . Fastest Speed 50 | 50 50 120 120 260 Average Speed 148 | 50 110 120 174 260 Slowest Speed 400 | 50 190 120 260 400 Overloaded Moves . | . . . . . Propulsion Burnouts . | . . . . . Robots Hopped . | . . . . . Potential Cave-ins . | . . . . . Cave-ins Triggered . | . . . . . Exploration Rate (%) 54 | 3 92 56 59 63 Regions Visited 4 Branch Regions 3 Pre-discovered Areas 2 | . . 1 1 . Known Exits Taken . | . . . . . Unknown Exits Taken 4 | 1 1 1 1 . Scrap Searched . | . . . . . Spaces Dug . | . . . . . Terrain Destroyed . | . . . . . Melee . | . . . . . Projectile . | . . . . . AOE . | . . . . . Terrain Rammed . | . . . . . Walls Destroyed . | . . . . . Machines Disabled . | . . . . . Actions | -11 -10 -10 -10 -9 --------- Run | Yrd Mat Min Exi Min Total 1831 | 49 842 348 257 335 Wait 32 | . 29 3 . . Move 1689 | 43 735 338 253 320 Hop . | . . . . . Pick Up 18 | 5 9 1 3 . Fast Attach 5 | . 4 . . 1 Attach 4 | 1 3 . . . Detach . | . . . . . Swap 8 | . 4 1 1 2 Drop 7 | . 6 1 . . Fire . | . . . . . Melee 68 | . 52 4 . 12 Ram . | . . . . . Kick . | . . . . . Crush . | . . . . . Escape Stasis . | . . . . . Rewire . | . . . . . Trap . | . . . . . Miscellaneous . | . . . . . Route ------- -11/Scrapyard -10/Materials (discovered 5 exits: [*Mat x3] / *Min x2) -10/Mines (discovered 3 exits: [*Mat x2] / *Exi) -10/Exiles (discovered 2 exits: [*Min x2]) -9/Mines History --------- Turn | Location | Event 17 | -11/Scrapyard | Discovered new exit (range 16) 29 | -11/Scrapyard | Entered Materials 83 | -10/Materials | Discovered new exit (range 7) 314 | -10/Materials | Build established: Mutant 413 | -10/Materials | Discovered new exit (range 16) 623 | -10/Materials | Discovered new exit (range 11) 717 | -10/Materials | Discovered new exit (range 7) 1019 | -10/Materials | Discovered new exit (range 15) 1055 | -10/Materials | Entered Mines 1055 | -10/Mines | Accompanied by 1 ally 1071 | -10/Mines | Met a Derelict bent on vengeance 1117 | -10/Mines | Learned location of 1 exit from Materials 1132 | -10/Mines | Learned location of Zion (-6) 1206 | -10/Mines | Learned 8 Materials zone layouts 1236 | -10/Mines | Discovered new exit (range 15) 1285 | -10/Mines | Discovered new exit (range 8) 1348 | -10/Mines | Core integrity fell below 50% 1471 | -10/Mines | Deemed a non-threat by the Exiles lab entrance 1472 | -10/Mines | Discovered new exit (range 5) 1480 | -10/Mines | Entered Exiles 1480 | -10/Exiles | Accompanied by 1 ally 1496 | -10/Exiles | Discovered new exit (range 15) 1510 | -10/Exiles | Met 8R-AWN 1531 | -10/Exiles | Met EX-HEX 1567 | -10/Exiles | Met EX-BIN 1632 | -10/Exiles | Aligned with FarCom system 1633 | -10/Exiles | Given EX-Vault access code 1662 | -10/Exiles | Opened EX-Vault 1672 | -10/Exiles | Found Potential Leg 1675 | -10/Exiles | Found Potential Leg 1679 | -10/Exiles | Found Superbattery 1727 | -10/Exiles | Warned to stay clear of 0b10 Research branches 1805 | -10/Exiles | Met EX-DEC 1896 | -10/Exiles | Discovered new exit (range 10) 1924 | -10/Exiles | Stole two prototypes: Potential Leg, Superbattery 1924 | -10/Exiles | Entered Mines 1924 | -9/Mines | Accompanied by 1 ally 2010 | -9/Mines | YI-UF0 nonchalantly dropped a Grenade Launcher on the ground 2020 | -9/Mines | Learned 2 Materials zone layouts 2086 | -9/Mines | Core integrity fell below 20% 2799 | -9/Mines | Destroyed by S-10 Pest with Light Assault Rifle Last Messages --------------- 02100_ R-06 Scavenger collects Aluminum Leg. 02101_ Mining Claw follow-up attack on G-34 Mercenary. 02106_ Aluminum Leg destroyed. 02110_ G-34 Mercenary destroyed. 02112_ K-01 Serf collects debris. 02117_ Acquired Aluminum Leg. 02119_ Acquired 10 matter. 02119_ K-01 Serf collects debris. 02121_ R-06 Scavenger collects Aluminum Leg. 02123_ K-01 Serf collects debris. 02124_ Sneak attack on R-06 Scavenger. 02124_ Destroyed Lgt. Ion Engine. 02126_ K-01 Serf collects debris. 02232_ YI-UF0 mumbles something. 02254_ T-07 Excavator is excavating. 02340_ K-01 Serf collects debris. 02442_ YI-UF0 mumbles something. 02454_ K-01 Serf collects debris. 02457_ YI-UF0 mumbles something. 02457_ K-01 Serf collects debris. Map ----- +----------------------------------------------------+ | ?????????????????????????????????????????????????? | | ?????????????????????????????????????????????????? | | ?????????????????????????????????????????????????? | | ?????????????????????????????????????????????????? | | ?????????????????????????????????????????????????? | | ?????????????????????????????????????????????????? | | ?????????????????????????????????????????????????? | | ?????????????????????????????????????????????????? | | ?????????????????????????????????????????????????? | | ?????????????????????????????????????????????????? | | ?????????????????????????????????????????????????? | | ?????????????????????????###?????????????????????? | | ????????????????????????s #?????????????????????? | | ?????????????????????????# #?????????????????????? | | ?????????????????????????# #?????????##??????????? | | ???????????????????????###s##??????## ??????????? | | ??????????????????????## ##?????# ??????????? | | ?????????????????????## r #?????# ?????????? | | ?????????????????????# #?????# ?????????? | | ?????????????????????# s""" #?????# ?????????? | | ?????????????????????# """s##????# ?????????? | | ?????????????????????## """ ##???# #????????? | | ??????????????????????## #???# ????????? | | ???????????????????????## #????# ##??????? | | ?????????????????####### # ##?????# ##?????? | | ? ???????????##########@o####??????# ##????? | | ???# ############## #??????????# ##???? | | ???# #???????????# ##??? | | ???# #????????????# ##?? | | ???######### ###### #????????????## ##? | | ???????????# ###### ##?????????????# #? | | ???????????# # #######?#######??# #? | | ???????????###### ## ######### ####??# #? | | ????????????????# ## ### ##### ##? | | ????????????##### ## ##?? | | ??????????### ## ### #??? | | ?????????## ###%%## ### ### #??? | | ?????????# ######t ### ##### ##?# #### | | ?????????# ##??## ]### ###?#####??## ## | | ????????## ##### ### ##??????????## | | ???????## ##### #### ###???????????## | | ??????## ### ## ####????????????# | | ??????# #### ## ###?????????????# | | ??##### ##### ## ##??????????????# | | ?## ##### """ ##????????????#?# # | | ## """ ## ##??????????###### ## | | # ###### """ ## ################## #? | | ## ###### ## ########## #### #? | | ### ########## ### #? | | #?# #### ############## ### ## | +----------------------------------------------------+ Best States ------------- Heat Dissipation 25 Energy Generation 10 Energy Capacity 250 Matter Stores 300 Matter Capacity 300 Sight Range 16 Terrain Scan Range 16 Terrain Scan Density 10 Armor Coverage 150 Evasion (%) 55 Item Schematics ----------------- None Robot Schematics ------------------ None Fabricated ------------ Nothing Repaired ---------- Nothing Studied --------- None Alien Tech Used ----------------- None Achievements -------------- None Challenges ------------ None Game ------ Seed StasisWeaponMegashotty Manual? 0 Play Time 00:15:53 Cumulative 264.6 hours Start 2025.11.13 @ 15:11:49 End 2025.11.13 @ 15:30:24 Sessions 1 Manual Loads 0 Difficulty Rogue Special Mode None Game No. 268 Rogue 264 Adventurer 3 Explorer 1 Win Type - Total 1 Types 1/0/0/0/0/0/0/0/0/0 Lore% 78 Gallery% 75 Achievement% 60 Wizard Run 0 Options --------- Layout 0 ASCII 0 Keyboard 0 Movement Mouse Keybinds 0 Fullscreen 2 Font 18/SmallcapsGlow Map View 76x50 Zoom Use 0% Tactical HUD 1 Map Filters NONE Filters NONE Steam 1 RUN: 88b7e31e-0057-4f55-a4e8-4c11f18d5a6f